Cogmind - Beta 13 @@@ ROGUE MODE // 2024.05.16 @ 13:33:06 Player: CONM Result: Self-destructed Performance ------------- Evolutions (1) 500 Regions Visited (3) 600 Robots Destroyed (22) 110 Value Destroyed (416) 416 Prototype IDs (0) 0 Alien Tech Used (0) 0 Bonus (0) 0 TOTAL SCORE: 1626 Bonus ------- None Cogmind --------- Core Integrity 265/400 Matter 186/300 Energy 100/100 System Corruption 0% Temperature Cool (0) Movement Core (400) Ox7 Location -9/Mines Parts ------- > --- POWER (1) -------- (None) > --- PROPULSION (2) --- (None) > --- UTILITY (4) ------ Large Storage Unit Improved Terrain Scanner Terrain Scan Processor Seismic Detector > --- WEAPON (2) ------- (None) > --- INVENTORY (15) --- Improved Ion Engine Heat Sink Tractor Beam Grenade Launcher Peak State ------------ > --- POWER ------------ Improved Ion Engine > --- PROPULSION ------- Light Treads Light Treads > --- UTILITY ---------- Large Storage Unit Improved Terrain Scanner Terrain Scan Processor Seismic Detector > --- WEAPON ----------- Missile Launcher Missile Launcher > --- INVENTORY -------- Improved Ion Engine Heat Sink Tractor Beam Grenade Launcher [Rating: 17] Favorites ----------- Power Ion Engine Engine Ion Engine Propulsion Light Treads Treads Light Treads Utility Improved Terrain Scanner Device Improved Terrain Scanner Storage Small Storage Unit Processor Terrain Scan Processor Weapon Medium Laser Energy Gun Medium Laser Launcher Grenade Launcher Build | -11 -10 -9 -9 ------- Run | Yrd Mat Mat Min Slots Evolved 2 | . . 2 . Power . | . . . . Propulsion . | . . . . Utility 2 | . . 2 . Weapon . | . . . . Parts Attached 16 | 7 2 7 . Power 2 | 1 1 . . Engine 2 | 1 1 . . Core . | . . . . Reactor . | . . . . Propulsion 4 | 2 . 2 . Treads 4 | 2 . 2 . Leg . | . . . . Wheel . | . . . . Hover . | . . . . Flight . | . . . . Utility 5 | 2 . 3 . Device 2 | 1 . 1 . Storage 2 | 1 . 1 . Processor 1 | . . 1 . Hackware . | . . . . Protection . | . . . . Artifact . | . . . . Weapon 5 | 2 1 2 . Energy Gun 2 | 2 . . . Energy Cannon . | . . . . Ballistic Gun . | . . . . Ballistic Cannon . | . . . . Launcher 3 | . 1 2 . Special Weapon . | . . . . Impact Weapon . | . . . . Slashing Weapon . | . . . . Piercing Weapon . | . . . . Special Melee Weapon . | . . . . Unidentified Prototypes . | . . . . Parts Lost 6 | . . 4 2 Power . | . . . . Propulsion 2 | . . 1 1 Utility . | . . . . Weapon 4 | . . 3 1 Highest Loss Streak 4 | . . 4 2 To Critical Strikes . | . . . . Average Slot Usage (%) 90 | . 100 95 65 Engine 9 | . 14 10 . Treads 21 | . 28 21 11 Device 17 | . 14 20 22 Storage 12 | . 14 11 11 Processor 5 | . . 9 11 Energy Gun 13 | . 21 9 . Launcher 8 | . 6 11 10 Naked Turns . | . . . . Heaviest Build 35 | 15 18 35 28 Greatest Support 40 | 40 40 40 20 Greatest Overweight (x) 1 | . . 1 1 Average Overweight (x) . | . . . 1 Largest Inventory Capacity 15 | 8 8 15 15 Average Capacity 10 | 7 8 14 15 Most Carried 8 | 2 8 8 4 Average Carried 4 | . 7 4 4 Final Capacity 15 | 8 8 15 15 Final Carried 8 | 2 8 4 4 Class Distribution -------------------- 100% | Mutant Dominant Class ---------------- Mutant | -10/Materials Mutant | -9/Materials Mutant | -9/Mines Resources | -11 -10 -9 -9 ----------- Run | Yrd Mat Mat Min Matter Collected 352 | 270 35 47 . Remotely . | . . . . Salvage Created 421 | 53 216 152 . Parts 42 | 8 25 9 . Haulers Intercepted . | . . . . Recyclers Shooed . | . . . . Parts Field Recycled . | . . . . Retrieved Matter . | . . . . Parts Self-Destructed . | . . . . Prevented . | . . . . Kills | -11 -10 -9 -9 ------- Run | Yrd Mat Mat Min Combat Hostiles Destroyed 14 | . 7 7 . Guns 1 | . 1 . . AOE 13 | . 6 7 . Classes Destroyed 6 | 1 5 . . Worker 1 | . 1 . . Builder 4 | . 4 . . Tunneler 2 | 2 . . . Recycler 1 | . 1 . . Swarmer 6 | . 3 3 . Grunt 8 | . 4 4 . Best Kill Streak 6 | 1 6 5 . Combat Bots Only 5 | . 3 5 . Max Kills in Single Turn 4 | 1 3 4 . Gunslinging . | . . . . Exploded 4 | . 2 4 . Melee . | . . . . Uniques/NPCs Destroyed . | . . . . Combat | -11 -10 -9 -9 -------- Run | Yrd Mat Mat Min Hostile Shots Fired 129 | . 30 80 19 Missed 40 | . 5 33 2 Damage Taken 1097 | . 259 698 140 Core 184 | . 49 126 9 Absorbed by Shields . | . . . . Core Remaining (%) 90 | 100 80 . . Volleys Fired 20 | 8 7 5 . Largest 2 | 2 2 2 . Hottest 100 | 100 80 80 . Shots Fired 40 | 16 14 10 . Gun 27 | 16 7 4 . Cannon . | . . . . Launcher 13 | . 7 6 . Special . | . . . . Kinetic . | . . . . Thermal 27 | 16 7 4 . Explosive 13 | . 7 6 . Electromagnetic . | . . . . Robot Hit Streak 6 | 2 6 3 . Robot Miss Streak 5 | 1 5 2 . Penetration Max . | . . . . Secondary Targets . | . . . . Shots Hit Robots 19 | 8 7 4 . Core Hits 29 | 2 17 10 . Critical Kills . | . . . . Critical Parts Destroyed . | . . . . Critical Strikes 1 | . 1 . . Burn 1 | . 1 . . Melee Attacks . | . . . . Impact . | . . . . Slashing . | . . . . Piercing . | . . . . Sneak Attacks . | . . . . Combat Hostiles . | . . . . Follow-up Attacks . | . . . . Damage Inflicted 1083 | 100 592 391 . Guns 174 | 100 49 25 . Cannons . | . . . . Explosions 909 | . 543 366 . Melee . | . . . . Ramming . | . . . . Kinetic . | . . . . Thermal 174 | 100 49 25 . Explosive 909 | . 543 366 . Electromagnetic . | . . . . Impact . | . . . . Slashing . | . . . . Piercing . | . . . . Highest Corruption 2 | . 2 . . Average Corruption 2 | . 2 . . Corruption Purged . | . . . . Corruption Blocked . | . . . . Effects 1 | . 1 . . Data Loss (minor) 1 | . 1 . . Overload Shots . | . . . . Overflow Damage 20 | . 20 . . Projectiles . | . . . . Explosions 20 | . 20 . . Melee . | . . . . Knockbacks . | . . . . Impact . | . . . . Kinetic . | . . . . Secondary . | . . . . Self-Inflicted Damage 103 | . 30 73 . Shots 5 | . 2 3 . Rammed . | . . . . Targets Rammed . | . . . . Kicked . | . . . . Crushed . | . . . . Highest Temperature 78 | 78 72 32 . Average Temperature 26 | 30 28 14 . Received Heat Transfer 339 | . 78 261 . Siege Activations . | . . . . Robots Corrupted . | . . . . Combat Hostiles . | . . . . Parts Fried . | . . . . Impact Corruptions . | . . . . Robots Melted . | . . . . Combat Hostiles . | . . . . Parts Melted . | . . . . Heat Transferred 592 | 296 222 74 . Parts Sabotaged . | . . . . Parts Stolen . | . . . . Parts Stripped . | . . . . Power Chain Reactions . | . . . . Alert | -11 -10 -9 -9 ------- Run | Yrd Mat Mat Min Peak Influence 334 | 10 334 309 112 Initial 112 | . 6 56 112 Average 107 | 2 88 208 111 Maximum Alert Level 1 | . 1 1 . Low Security (%) 77 | 100 87 25 100 Level 1 22 | . 12 74 . Level 2 . | . . . . Level 3 . | . . . . Level 4 . | . . . . Level 5 . | . . . . High Security . | . . . . Max Security . | . . . . Squads Dispatched 2 | . 1 1 . Investigation . | . . . . Extermination . | . . . . Reinforcement 2 | . 1 1 . Assault . | . . . . Garrison . | . . . . Intercept . | . . . . Searches Triggered . | . . . . Construction Impeded . | . . . . Haulers Reinforced . | . . . . Active Scanning Responses . | . . . . Cargo Convoy Interrupts . | . . . . Stealth | -11 -10 -9 -9 --------- Run | Yrd Mat Mat Min Distress Signals 2 | . 2 . . Communications Jammed . | . . . . Distress Signals . | . . . . Times Spotted 31 | . 17 11 3 Peak Tracking Total 7 | . 7 5 3 Tactical Retreats 1 | . 1 . . Traps | -11 -10 -9 -9 ------- Run | Yrd Mat Mat Min Traps Triggered 1 | . 1 . . Indirectly . | . . . . Trap Hack Attempts . | . . . . Triggered . | . . . . Disarmed . | . . . . Reprogrammed . | . . . . Reused . | . . . . Traps Extracted . | . . . . Installed . | . . . . Triggered . | . . . . Machines | -11 -10 -9 -9 ---------- Run | Yrd Mat Mat Min Machines Disabled 3 | . 2 1 . Max in Single Turn 1 | . 1 1 . Machines Repaired . | . . . . Machines Dismantled . | . . . . Machines Sabotaged . | . . . . Overloaded Fab Kills . | . . . . Hacking | -11 -10 -9 -9 --------- Run | Yrd Mat Mat Min Machines Accessed 3 | . 3 . . Terminals 2 | . 2 . . Fabricators . | . . . . Repair Stations . | . . . . Recycling Units 1 | . 1 . . Scanalyzers . | . . . . Garrison Access . | . . . . Total Hacks 10 | . 10 . . Successful 6 | . 6 . . Failed 4 | . 4 . . Catastrophic 1 | . 1 . . Database Lockouts . | . . . . Manual 5 | . 5 . . Terminals 6 | . 6 . . Fabricators . | . . . . Repair Stations . | . . . . Recycling Units 4 | . 4 . . Scanalyzers . | . . . . Garrison Access . | . . . . Terminal Hacks 3 | . 3 . . Terminal Index 1 | . 1 . . Maintenance Status 1 | . 1 . . Zone Layout 1 | . 1 . . Fabricator Hacks . | . . . . Repair Station Hacks . | . . . . Recycling Unit Hacks 3 | . 3 . . Process 1 | . 1 . . Report Inventory 1 | . 1 . . Retrieve Matter 1 | . 1 . . Scanalyzer . | . . . . Garrison Access Hacks . | . . . . Unauthorized Hacks . | . . . . Terminals . | . . . . Fabricators . | . . . . Repair Stations . | . . . . Recycling Units . | . . . . Scanalyzers . | . . . . Garrison Access . | . . . . Data Cores Recovered . | . . . . Used . | . . . . Hacking Detections 1 | . 1 . . Full Trace Events 1 | . 1 . . Feedback Events . | . . . . Feedback Blocked . | . . . . Robot Schematics Acquired . | . . . . Robots Built . | . . . . Authchips . | . . . . Time . | . . . . Total Robot Build Rating . | . . . . Part Schematics Acquired . | . . . . Parts Built . | . . . . Authchips . | . . . . Time . | . . . . Total Part Build Rating . | . . . . Parts Repaired . | . . . . Time . | . . . . Parts Recycled . | . . . . Recycled Matter 102 | . 102 . . Retrieved Matter 102 | . 102 . . Retrieved Components . | . . . . Parts Scanalyzed . | . . . . Part Schematics Acquired . | . . . . Parts Damaged . | . . . . Bothacking | -11 -10 -9 -9 ------------ Run | Yrd Mat Mat Min Used RIF Installer . | . . . . Robots Hacked . | . . . . Non-combat . | . . . . Combat . | . . . . Robot Hacks Applied . | . . . . Relay Couplers Released . | . . . . Fabnet Peak Effective % . | . . . . Robots Rewired . | . . . . Allies Hacked . | . . . . Hacks Repelled . | . . . . Allies | -11 -10 -9 -9 -------- Run | Yrd Mat Mat Min Total Allies . | . . . . Largest Group . | . . . . Highest-Rated Group . | . . . . Highest-Rated Ally . | . . . . Total Orders . | . . . . Ally Attacks . | . . . . Total Damage . | . . . . Kills . | . . . . Allies Corrupted . | . . . . Allies Melted . | . . . . Intel | -11 -10 -9 -9 ------- Run | Yrd Mat Mat Min Robot Analysis Total . | . . . . Derelict Logs Recovered 1 | . . . 1 Drone Launches . | . . . . Drone Recoveries . | . . . . Exploration | -11 -10 -9 -9 ------------- Run | Yrd Mat Mat Min Turns Passed 1281 | 204 508 297 272 Spaces Moved 687 | 109 296 169 113 Core 5 | 5 . . . Treads 682 | 104 296 169 113 Legs . | . . . . Wheels . | . . . . Hover . | . . . . Flight . | . . . . Fastest Speed 50 | 50 160 160 240 Average Speed 172 | 154 160 161 240 Slowest Speed 240 | 160 160 240 240 Overloaded Moves . | . . . . Propulsion Burnouts . | . . . . Robots Hopped . | . . . . Cave-ins Triggered . | . . . . Exploration Rate (%) 26 | 5 50 15 35 Regions Visited 3 Branch Regions 1 Pre-discovered Areas 1 | . . . 1 Known Exits Taken . | . . . . Unknown Exits Taken 3 | 1 1 1 . Scrap Searched . | . . . . Spaces Dug . | . . . . Terrain Destroyed 83 | . 46 37 . Melee . | . . . . Projectile . | . . . . AOE 83 | . 46 37 . Terrain Rammed . | . . . . Walls Destroyed . | . . . . Machines Disabled . | . . . . Actions | -11 -10 -9 -9 --------- Run | Yrd Mat Mat Min Total 740 | 125 318 184 113 Wait . | . . . . Move 684 | 108 295 168 113 Hop . | . . . . Pick Up 12 | 2 10 . . Fast Attach 10 | 7 . 3 . Attach 4 | . . 4 . Detach . | . . . . Swap 2 | . 2 . . Drop 8 | . 4 4 . Fire 20 | 8 7 5 . Melee . | . . . . Ram . | . . . . Kick . | . . . . Crush . | . . . . Escape Stasis . | . . . . Rewire . | . . . . Trap . | . . . . Miscellaneous . | . . . . Route ------- -11/Scrapyard -10/Materials (discovered 2 exits: [*Mat] / [*Min]) -9/Materials -9/Mines History --------- Turn | Location | Event 5 | -11/Scrapyard | Discovered new exit (range 16) 205 | -11/Scrapyard | Entered Materials 301 | -10/Materials | Build established: Mutant 374 | -10/Materials | Discovered new exit (range 9) 624 | -10/Materials | Discovered new exit (range 16) 713 | -10/Materials | Entered another Materials area 713 | -9/Materials | Evolved 2 slots: Utility x2 972 | -9/Materials | Discovered new exit (range 9) 1010 | -9/Materials | Entered Mines 1034 | -9/Mines | Lost 4 parts (1n3w) 1282 | -9/Mines | Self-destructed Last Messages --------------- 00925_ K-01 Serf collects debris. 00938_ U-05 Engineer builds a Door. 00972_ EXIT=FOUND 00979_ Med. Laser destroyed. 00983_ Grenade Launcher destroyed. 00985_ Acquired Missile Launcher. 00990_ Dropped Imp. Ion Engine. 00991_ G-47 Trooper suffers critical hit (Burn). 01002_ G-47 Trooper destroyed. 01003_ Lgt. Treads destroyed. 01003_ Missile Launcher destroyed. 01003_ Critical hit (Burn: +37). LOCATION=UNKNOWN GOAL=ESCAPE Something is scanning the area. 01037_ Acquired derelict log, extracted data. World map updated: -8/Materials. 01124_ K-01 Serf collects debris. 01277_ Missile Launcher destroyed. 01281_ Lgt. Treads destroyed. Map ----- +----------------------------------------------------+ | ?#?#????# #?## ## ## ##?####????????????????? | | ??#??##?# ### ###### #?#??#?????????????????? | | ?#??##?## #???## ##??#?#????"???????????? | | ###?##?## ####?# ####?#???#?????????????? | | ?#?????###### ##### ##???###????? ?????????? | | #?###??##?### #####?##???????????????? | | ?#???####?#?# #?###?####?????????????? | | ?#???##??#### #####???# ##?????????????? | | ???##??#?##?## ###?#### $ ##????????????? | | #?????#?#?#??#### ##?## ##???????????? | | ???#?#?#?##??#?### ### ??????????? | | ??###???#??##?#### ??????????? | | ??###??#####?????## #?????????????? | | ?#?##???#??############ #??????????????? | | ?#?#?????##########?#### # ##?#????????????? | | #???####?##?#??#???##?## ## ##??#????????????? | | ?#??###?####???#####???# #? ? #?#?#????????????? | | ???#####??##########??## ##? ????#????????????? | | ?#?## ##### ########## #?# #?????#???????????? | | ??## ### ### ##?#####???????????? | | ?## ######### ### ####?##?#??????????? | | ??# ####??#### ??? ??? ???????? | | ??# ####?#### $ ????? ?????????? | | ??# #######??# #### #??#???##???????? | | #?## ###?#####?# ss##?? ?###????#???????? | | ??#### #####?###?### @ #### ?####???????????? | | #????## ##?##?#?###?## ##? #????#??????? | | ????### ##?#?###?##### s#### ##?#????????? | | #?#???## ######### """ #??#????????? | | ?????#### ####?## #### """ ###?????????? | | ???#???## ###### ######?#? """ ????????????? | | ?#?????# ###?## ######?? ? #???????????? | | #?##???# ###?##k ##?##?#???#?#?##???????????? | | ??#???## ###### #??##??####?###????????????? | | ?#?#??# ###### ###?#??#??##????? ?????????? | | ????### #?##????#####????? ????????? | | #????# ###########?????##?#?#??????????????? | | ??#?# ## ##?###????###### ?? ?? ??##?????????? | | ?##?# #?#####???#???####?#? ?????#??????????????? | | ###?###???#????###?## ? ?##??#?#??#? ????????????? | | ?####?#?#?#?#####???? ???????????????????????? | | ##?????#?#??##????## ##?? ? ##???#??????????????? | | ?????#??????###???## ?#?#? ??????##??????????????? | | ???????#???#?????????? ?# ?? ?????????????????? | | ???#??????#####?#??###?#???????? ????????????????? | | ???##??##?##??#?##????#??????? ??????????????????? | | ?#?#????#?#?#?#?#??????#???? ????????????????????? | | ?#?#??##?????#?###???#???????????????????????????? | | ??????#???#?????#?###?#??????????????????????????? | | ??????????#???????#??????#???????????????????????? | +----------------------------------------------------+ Best States ------------- Heat Dissipation 28 Energy Generation 12 Energy Capacity 265 Matter Stores 300 Matter Capacity 300 Sight Range 16 Terrain Scan Range 16 Terrain Scan Density 85 Evasion (%) 40 Recoil Reduction 2 Item Schematics ----------------- None Robot Schematics ------------------ None Fabricated ------------ Nothing Alien Tech Used ----------------- None Achievements -------------- None Challenges ------------ None Game ------ Seed FactoryFieldCasing Manual? 0 Play Time 00:16:16 Cumulative 16.4 hours Start 2024.05.15 @ 23:11:49 End 2024.05.16 @ 13:33:06 Sessions 1 Manual Loads 0 Difficulty Rogue Special Mode None Game No. 36 Rogue 36 Adventurer 0 Explorer 0 Win Type - Total 0 Types 0/0/0/0/0/0/0/0/0 Lore% 15 Gallery% 15 Achievement% 15 Wizard Run 0 Options --------- Layout 1 ASCII 0 Keyboard 0 Movement Arrows Keybinds 0 Fullscreen 1 Font 24/Smallcaps Map View 50x40 Zoom Use 0% Tactical HUD 1 Map Filters NONE Filters NONE Steam 1 RUN: a567f00c-25d8-4226-b715-027c7d751b64